Workbook

Sheet многоборье 4кл
A1: Сводный протокол проведения муниципального этапа спортивного многоборья в рамках республиканского этапа Всероссийских соревнований «Президентские состязания» среди городских образовательных организации, 4 класс МБОУ "ЗСОШ №4" г. Заинск
A4: № | B4: ФИ | C4: возраст | D4: подтягивание | E4: очки | F4: прыжки в дл.с\м | G4: очки | H4: поднимание туловища | I4: очки | J4: наклоны | K4: очки | L4: сгибание рук | M4: очки | N4: челночный бег 3х10 | O4: очки | P4: Общая сумма
A5: 1 | B5: Ахметзянова Лия | C5: 10 | F5: 155 | G5: 35 | H5: 27 | I5: 58 | J5: 2 | K5: 11 | L5: 28 | M5: 61 | N5: 9.1 | O5: 31 | P5: =G5+I5+K5+M5+O5 -> 196
A6: 2 | B6: Варламова Софья | C6: 10 | F6: 137 | G6: 24 | H6: 25 | I6: 53 | J6: 7 | K6: 26 | L6: 15 | M6: 36 | N6: 9.5 | O6: 20 | P6: =G6+I6+K6+M6+O6 -> 159
A7: 3 | B7: Паймухина Карина | C7: 10 | F7: 145 | G7: 28 | H7: 25 | I7: 53 | J7: 14 | K7: 50 | L7: 20 | M7: 50 | N7: 9.7 | O7: 16 | P7: 197
A8: 4 | B8: Захарова Милена | C8: 10 | F8: 146 | G8: 28 | H8: 21 | I8: 41 | J8: 15 | K8: 53 | L8: 20 | M8: 50 | N8: 10.3 | O8: 6 | P8: 178
A9: 5 | B9: Осипова Елена | C9: 11 | F9: 149 | G9: 25 | H9: 23 | I9: 47 | J9: 9 | K9: 24 | L9: 23 | M9: 63 | N9: 9.0 | O9: 34 | P9: 193
A10: 6 | B10: Сапунова Яна | C10: 10 | F10: 155 | G10: 35 | H10: 28 | I10: 60 | J10: 9 | K10: 32 | L10: 30 | M10: 64 | N10: 8.7 | O10: 29 | P10: 220 | Q10: личник
A11: 7 | B11: Каргина Снежана | C11: 10 | F11: 176 | G11: 53 | H11: 20 | I11: 38 | J11: 13 | K11: 46 | L11: 2 | M11: 2 | N11: 9.3 | O11: 17 | P11: 156
A12: 8 | B12: Малахова Мария | C12: 11 | F12: 140 | G12: 25 | H12: 26 | I12: 56 | J12: 12 | K12: 42 | L12: 18 | M12: 32 | N12: 9.0 | O12: 34 | P12: 189
P13: 0
A14: 9 | B14: Эрназаров Самир | C14: 11 | D14: 6 | E14: 33 | F14: 178 | G14: 29 | H14: 38 | I14: 66 | J14: 9 | K14: 38 | N14: 9.1 | O14: 21 | P14: =G14+I14+K14+M14+O14+E14 -> 187
A15: 10 | B15: Амирханов Султан | C15: 10 | D15: 3 | E15: 25 | F15: 161 | G15: 28 | H15: 24 | I15: 41 | J15: 3 | K15: 26 | N15: 9.5 | O15: 13 | P15: =G15+I15+K15+M15+O15+E15 -> 133
A16: 11 | B16: Бушуров Никита | C16: 11 | D16: 0 | E16: 0 | F16: 156 | G16: 18 | H16: 18 | I16: 18 | J16: 13 | K16: 53 | N16: 9.4 | O16: 15 | P16: 104
A17: 12 | B17: Нехаев Данил | C17: 11 | D17: 5 | E17: 29 | F17: 162 | G17: 21 | H17: 21 | I17: 18 | J17: 12 | K17: 50 | N17: 9.4 | O17: 15 | P17: 133
A18: 13 | B18: Дангузов Алексей | C18: 11 | D18: 3 | E18: 21 | F18: 175 | G18: 28 | H18: 28 | I18: 29 | J18: 11 | K18: 46 | N18: 8.8 | O18: 27 | P18: 151
A19: 14 | B19: Иванов Дмитрий | C19: 10 | D19: 11 | E19: 65 | F19: 165 | G19: 30 | H19: 30 | I19: 25 | J19: 13 | K19: 60 | N19: 8.7 | O19: 29 | P19: 209 | Q19: личник
A20: 15 | B20: Тихонов Тимофей | C20: 10 | D20: 0 | E20: 0 | F20: 150 | G20: 22 | H20: 22 | I20: 23 | J20: 0 | K20: 14 | N20: 9.3 | O20: 17 | P20: 76
A21: 16 | B21: Мингазов Рустем | C21: 11 | D21: 0 | E21: 0 | F21: 116 | G21: 3 | H21: 3 | I21: 15 | J21: 5 | K21: 24 | N21: 9.0 | O21: 23 | P21: 65
E22: 173 | G22: 605 | I22: 711 | K22: 595 | M22: =SUM(M5:M21) -> 358 | O22: =SUM(O5:O21) -> 347 | P22: 2789
E25: Главный судья: Краснова Р.Р.
D27: Главный секретарь: Идиятуллина Г.Г.

Sheet многоборье 5 кл
A1: Сводный протокол проведения муниципального этапа спортивного многоборья в рамках республиканского этапа Всероссийских соревнований «Президентские состязания» среди городских образовательных организации, 5 класс МБОУ "ЗСОШ №4" г. Заинск
A4: № | B4: ФИ | C4: возраст | D4: подтягивание | E4: очки | F4: прыжки в дл.с\м | G4: очки | H4: поднимание туловища | I4: очки | J4: наклоны | K4: очки | L4: сгибание рук | M4: очки | N4: челночный бег 3х10 | O4: очки | P4: Общая сумма
A5: 1 | B5: Ревина Полина | C5: 12 | F5: 133 | G5: 12 | H5: 22 | I5: 33 | J5: 0 | K5: 4 | L5: 2 | M5: 2 | N5: 8.8 | O5: 53 | P5: =G5+I5+K5+M5+O5 -> 104
A6: 2 | B6: Иванова Юлия | C6: 11 | F6: 165 | G6: 33 | H6: 20 | I6: 34 | J6: 6 | K6: 15 | L6: 20 | M6: 40 | N6: 8.6 | O6: 36 | P6: =G6+I6+K6+M6+O6 -> 158 | Q6: личник
A7: 3 | B7: Александрова Анна | C7: 11 | F7: 153 | G7: 27 | H7: 25 | I7: 44 | J7: 5 | K7: 13 | L7: 19 | M7: 38 | N7: 9.2 | O7: 31 | P7: 153
A8: 4 | B8: Гусева Снежана | C8: 12 | F8: 135 | G8: 13 | H8: 16 | I8: 21 | J8: 0 | K8: 4 | L8: 4 | M8: 4 | N8: 9.5 | O8: 22 | P8: 64
A9: 5 | B9: Насыбуллина Арина | C9: 12 | F9: 135 | G9: 13 | H9: 22 | I9: 33 | J9: 9 | K9: 20 | L9: 20 | M9: 34 | N9: 9.5 | O9: 20 | P9: 120
A10: 6 | B10: Усманова Дарина | C10: 11 | F10: 115 | G10: 8 | H10: 24 | I10: 42 | J10: 6 | K10: 15 | L10: 4 | M10: 8 | N10: 9.1 | O10: 22 | P10: 95
A11: 7 | B11: Архипова Алина | C11: 11 | F11: 160 | G11: 30 | H11: 22 | I11: 38 | J11: 3 | K11: 9 | L11: 12 | M11: 24 | N11: 9.0 | O11: 22 | P11: 123
A12: 8 | B12: Родионова Юлия | C12: 12 | F12: 135 | G12: 13 | H12: 22 | I12: 33 | J12: 4 | K12: 9 | L12: 4 | M12: 4 | N12: 9.7 | O12: 12 | P12: 71
A14: 9 | B14: Зеленин Максим | C14: 12 | D14: 9 | E14: 41 | F14: 178 | G14: 24 | H14: 28 | I14: 40 | J14: 4 | K14: 18 | N14: 7.4 | O14: 59 | P14: =E14+G14+I14+K14+O14 -> 182
A15: 10 | B15: Тихонов Михаил | C15: 12 | D15: 0 | E15: 0 | F15: 192 | G15: 31 | H15: 26 | I15: 36 | J15: 4 | K15: 18 | N15: 8.1 | O15: 38 | P15: =E15+G15+I15+K15+O15 -> 123
A16: 11 | B16: Зиатдинов Ирек | C16: 11 | D16: 0 | E16: 0 | F16: 154 | G16: 17 | H16: 28 | I16: 45 | J16: 2 | K16: 15 | N16: 8.7 | O16: 29 | P16: 106
A17: 12 | B17: Рахимов Валентин | C17: 11 | D17: 9 | E17: 50 | F17: 172 | G17: 26 | H17: 31 | I17: 52 | J17: 17 | K17: 61 | N17: 7.2 | O17: 69 | P17: 258 | Q17: личник
A18: 13 | B18: Гараев Айнур | C18: 11 | D18: 9 | E18: 50 | F18: 190 | G18: 40 | H18: 32 | I18: 66 | J18: 14 | K18: 55 | N18: 8.1 | O18: 46 | P18: 257
A19: 14 | B19: Насибуллин Артур | C19: 12 | D19: 10 | E19: 45 | F19: 161 | G19: 16 | H19: 22 | I19: 50 | J19: 6 | K19: 22 | N19: 7.7 | O19: 53 | P19: 186
A20: 15 | B20: Аглямов Тимур | C20: 12 | D20: 7 | E20: 33 | F20: 182 | G20: 26 | H20: 26 | I20: 28 | J20: 2 | K20: 14 | N20: 7.9 | O20: 46 | P20: 147
A21: 16 | B21: Валиуллин Тимур | C21: 12 | D21: 6 | E21: 29 | F21: 155 | G21: 14 | H21: 28 | I21: 36 | J21: 0 | K21: 10 | N21: 7.8 | O21: 50 | P21: 139
E22: =SUM(E5:E21) -> 248 | G22: =SUM(G5:G21) -> 343 | I22: =SUM(I5:I21) -> 631 | K22: =SUM(K5:K21) -> 302 | M22: =SUM(M5:M21) -> 154 | O22: =SUM(O5:O21) -> 608 | P22: 2132
D26: Главный судья: Краснова Р.Р.
D27: Главный секретарь: Идиятуллина Г.Г.

Sheet многоборье 6 кл
A2: Сводный протокол проведения муниципального этапа спортивного многоборья в рамках республиканского этапа Всероссийских соревнований «Президентские состязания» среди городских образовательных организации, 6 класс МБОУ "ЗСОШ №2"
A5: № | B5: ФИ | C5: возраст | D5: подтягивание | E5: очки | F5: прыжки в дл.с\м | G5: очки | H5: поднимание туловища | I5: очки | J5: наклоны | K5: очки | L5: сгибание рук | M5: очки | N5: челночный бег 3х10 | O5: очки | P5: Общая сумма
A6: 1 | B6: Валиева Сабина | C6: 13 | F6: 164 | G6: 20 | H6: 22 | I6: 23 | J6: 15 | K6: 34 | L6: 25 | M6: 38 | N6: 8.8 | O6: 22 | P6: =G6+I6+K6+M6+O6 -> 137
A7: 2 | B7: Верина Анастасия | C7: 12 | F7: 120 | G7: 6 | H7: 20 | I7: 29 | J7: 13 | K7: 32 | L7: 6 | M7: 6 | N7: 9.6 | O7: 12 | P7: =G7+I7+K7+M7+O7 -> 85
A8: 3 | B8: Колесова Анастасия | C8: 13 | F8: 145 | G8: 11 | H8: 23 | I8: 25 | J8: 18 | K8: 41 | L8: 0 | M8: 0 | N8: 9.4 | O8: 10 | P8: 87
A9: 4 | B9: Комиссарова Анастасия | C9: 12 | F9: 122 | G9: 6 | H9: 22 | I9: 33 | J9: 0 | K9: 0 | L9: 0 | M9: 0 | N9: 9.0 | O9: 24 | P9: 63
A10: 5 | B10: Куликова Полина | C10: 12 | F10: 136 | G10: 13 | H10: 20 | I10: 29 | J10: 20 | K10: 52 | L10: 15 | M10: 24 | N10: 9.3 | O10: 18 | P10: 136
A11: 6 | B11: Мухаметзянова Гузель | C11: 12 | F11: 139 | G11: 15 | H11: 21 | I11: 31 | J11: 12 | K11: 29 | L11: 10 | M11: 14 | N11: 9.8 | O11: 8 | P11: 97
A12: 7 | B12: Невкрытая Софья | C12: 12 | F12: 152 | G12: 21 | H12: 25 | I12: 39 | J12: 14 | K12: 35 | L12: 14 | M12: 28 | N12: 8.5 | O12: 39 | P12: 162 | Q12: личник
A13: 8 | B13: Шушарина Елена | C13: 12 | F13: 153 | G13: 22 | H13: 29 | I13: 35 | J13: 18 | K13: 47 | L13: 10 | M13: 14 | N13: 9.4 | O13: 16 | P13: 134
P14: 0
A15: 9 | B15: Зыков Артем | C15: 12 | D15: 5 | E15: 25 | F15: 177 | G15: 24 | H15: 24 | I15: 10 | J15: 0 | K15: 0 | N15: 8.7 | O15: 20 | P15: =E15+G15+I15+K15+O15 -> 79
A16: 10 | B16: Кобелев Максим | C16: 13 | D16: 0 | E16: 0 | F16: 184 | G16: 20 | H16: 26 | I16: 30 | J16: 18 | K16: 52 | N16: 8.1 | O16: 30 | P16: =E16+G16+I16+K16+O16 -> 132
A17: 11 | B17: Назаров Богдан | C17: 12 | D17: 0 | E17: 0 | F17: 181 | G17: 26 | H17: 27 | I17: 38 | J17: 5 | K17: 20 | N17: 7.4 | O17: 59 | P17: 143 | Q17: личник
A18: 12 | B18: Новиков Иаксим | C18: 12 | D18: 2 | E18: 13 | F18: 190 | G18: 30 | H18: 21 | I18: 26 | J18: 0 | K18: 0 | N18: 8.4 | O18: 28 | P18: 97
A19: 13 | B19: Понамарев егор | C19: 12 | D19: 2 | E19: 13 | F19: 188 | G19: 29 | H19: 25 | I19: 34 | J19: 6 | K19: 22 | N19: 7.8 | O19: 50 | P19: 148
A20: 14 | B20: Портнов Никита | C20: 12 | D20: 3 | E20: 17 | F20: 159 | G20: 15 | H20: 26 | I20: 36 | J20: 1 | K20: 12 | N20: 8.3 | O20: 31 | P20: 111
A21: 15 | B21: Фирстов Роман | C21: 12 | D21: 2 | E21: 13 | F21: 172 | G21: 21 | H21: 29 | I21: 42 | J21: 2 | K21: 14 | N21: 8.8 | O21: 18 | P21: 108
A22: 16 | B22: Хренов Илья | C22: 12 | D22: 3 | E22: 17 | F22: 176 | G22: 24 | H22: 27 | I22: 38 | J22: 3 | K22: 16 | N22: 8.5 | O22: 25 | P22: 120
E23: =SUM(E6:E22) -> 98 | G23: =SUM(G6:G22) -> 303 | I23: =SUM(I6:I22) -> 498 | K23: =SUM(K6:K22) -> 406 | M23: =SUM(M6:M22) -> 124 | O23: =SUM(O6:O22) -> 410 | P23: 1741
D25: Главный судья: Краснова Р.Р. Главный секретарь: Идиятуллина Г.Г.

Sheet многоборье 7 кл
B2: Сводный протокол проведения муниципального этапа спортивного многоборья в рамках республиканского этапа Всероссийских соревнований «Президентские состязания» среди городских образовательных организации, 7 класс МБОУ "ЗСОШ №3"
A5: № | B5: ФИ | C5: возраст | D5: подтягивание | E5: очки | F5: прыжки в дл.с\м | G5: очки | H5: поднимание туловища | I5: очки | J5: наклоны | K5: очки | L5: сгибание рук | M5: очки | N5: челночный бег 3х10 | O5: очки | P5: Общая сумма
A6: 1 | B6: Бабатова Александра | C6: 14 | F6: 173 | G6: 24 | H6: 26 | I6: 32 | J6: 23 | K6: 54 | L6: 10 | M6: 8 | N6: 8.0 | O6: 39 | P6: 189
A7: 2 | B7: Нерсисян Ани | C7: 14 | F7: 160 | G7: 18 | H7: 20 | I7: 19 | J7: 1 | K7: 6 | L7: 30 | M7: 47 | N7: 7.9 | O7: 46 | P7: 262 | Q7: личник
A8: 3 | B8: Расторгуева Злата | C8: 14 | F8: 160 | G8: 18 | H8: 26 | I8: 32 | J8: 11 | K8: 26 | L8: 21 | M8: 21 | N8: 8.2 | O8: 33 | P8: 238
A9: 4 | B9: Коробова Вера | C9: 13 | F9: 205 | G9: 45 | H9: 32 | I9: 50 | J9: 23 | K9: 54 | L9: 29 | M9: 47 | N9: 7.3 | O9: 65 | P9: 127
A10: 5 | B10: Семенова Аделина | C10: 13 | F10: 167 | G10: 21 | H10: 27 | I10: 35 | J10: 2 | K10: 8 | L10: 8 | M10: 7 | N10: 8.0 | O10: 46 | P10: 152
A11: 6 | B11: Хабибуллина Алия | C11: 13 | F11: 157 | G11: 16 | H11: 21 | I11: 21 | J11: 13 | K11: 30 | L11: 5 | M11: 4 | N11: 8.4 | O11: 33 | P11: 150
A12: 7 | B12: Гарифуллина Аделина | C12: 13 | F12: 162 | G12: 19 | H12: 20 | I12: 19 | J12: 19 | K12: 44 | L12: 12 | M12: 12 | N12: 8.7 | O12: 24 | P12: 152
A13: 8 | B13: Рыжова Азалия | C13: 13 | F13: 179 | G13: 27 | H13: 21 | I13: 21 | J13: 32 | K13: 67 | L13: 10 | M13: 9 | N13: 8.7 | O13: 24 | P13: 120
A15: 9 | B15: Горин Кирилл | C15: 14 | D15: 10 | E15: 34 | F15: 173 | G15: 10 | H15: 20 | I15: 16 | J15: 4 | K15: 18 | N15: 7.6 | O15: 30 | P15: =E15+G15+I15+K15+O15 -> 108
A16: 10 | B16: Борин Кирилл | C16: 14 | D16: 14 | E16: 50 | F16: 182 | G16: 14 | H16: 28 | I16: 30 | J16: 14 | K16: 41 | N16: 8.1 | O16: 46 | P16: =E16+G16+I16+K16+O16 -> 181
A17: 11 | B17: Липатов Владислав | C17: 14 | D17: 8 | E17: 26 | F17: 189 | G17: 17 | H17: 26 | I17: 26 | J17: 8 | K17: 26 | N17: 8.0 | O17: 16 | P17: 111
A18: 12 | B18: Хафизов Никита | C18: 14 | D18: 9 | E18: 30 | F18: 210 | G18: 30 | H18: 27 | I18: 28 | J18: 5 | K18: 20 | N18: 7.4 | O18: 50 | P18: 158
A19: 13 | B19: Шаймухаметов Артем | C19: 14 | D19: 9 | E19: 30 | F19: 218 | G19: 38 | H19: 27 | I19: 28 | J19: 0 | K19: 0 | N19: 7.4 | O19: 22 | P19: 118
A20: 14 | B20: Чумарев Артем | C20: 13 | D20: 17 | E20: 60 | F20: 210 | G20: 35 | H20: 29 | I20: 36 | J20: 10 | K20: 30 | N20: 7.3 | O20: 43 | P20: 204 | Q20: личник
A21: 15 | B21: Воробьев Данил | C21: 13 | D21: 11 | E21: 42 | F21: 196 | G21: 26 | H21: 26 | I21: 30 | J21: 2 | K21: 14 | N21: 7,1 | O21: 30 | P21: 142
A22: 16 | B22: Чернов Павел | C22: 14 | D22: 10 | E22: 34 | F22: 192 | G22: 19 | H22: 23 | I22: 20 | J22: 0 | K22: 0 | N22: 7.0 | O22: 53 | P22: 126
E23: =SUM(E6:E22) -> 306 | G23: =SUM(G6:G22) -> 377 | I23: =SUM(I6:I22) -> 443 | K23: =SUM(K6:K22) -> 438 | M23: =SUM(M6:M22) -> 155 | O23: =SUM(O6:O22) -> 600 | P23: =SUM(P6:P22) -> 2538
D25: Главный судья: Краснова Р.Р. Главный секретарь: Идиятуллина Г.Г.

Sheet многоборье 8 кл
B2: Сводный протокол проведения муниципального этапа спортивного многоборья в рамках республиканского этапа Всероссийских соревнований «Президентские состязания» среди городских образовательных организации, 8 класс МБОУ "ЗСОШ №7 с УИОП"
A5: № | B5: ФИ | C5: возраст | D5: подтягивание | E5: очки | F5: прыжки в дл.с\м | G5: очки | H5: поднимание туловища | I5: очки | J5: наклоны | K5: очки | L5: сгибание рук | M5: очки | N5: челночный бег 3х10 | O5: очки | P5: Общая сумма
A6: 1 | B6: Ахмадиева Эвелина | C6: 14 | F6: 176 | G6: 26 | H6: 20 | I6: 19 | J6: 12 | K6: 24 | L6: 9 | M6: 7 | N6: 7.8 | O6: 46 | P6: =G6+I6+K6+M6+O6 -> 122
A7: 2 | B7: Чурбанова Мария | C7: 15 | F7: 169 | G7: 22 | H7: 30 | I7: 41 | J7: 0 | K7: 4 | L7: 23 | M7: 32 | N7: 8.2 | O7: 26 | P7: =G7+I7+K7+M7+O7 -> 125
A8: 3 | B8: Кадырова Лилия | C8: 14 | F8: 174 | G8: 25 | H8: 21 | I8: 21 | J8: 12 | K8: 24 | L8: 16 | M8: 18 | N8: 7.9 | O8: 42 | P8: 130
A9: 4 | B9: Каштанова Виктория | C9: 14 | F9: 184 | G9: 30 | H9: 20 | I9: 19 | J9: 20 | K9: 47 | L9: 17 | M9: 20 | N9: 8.0 | O9: 39 | P9: 155 | Q9: личник
A10: 5 | B10: Храмова Дарья | C10: 14 | F10: 150 | G10: 13 | H10: 20 | I10: 19 | J10: 1 | K10: 5 | L10: 20 | M10: 26 | N10: 8.5 | O10: 35 | P10: 98
A11: 6 | B11: Агрикова Диана | C11: 14 | F11: 177 | G11: 26 | H11: 14 | I11: 12 | J11: 11 | K11: 22 | L11: 3 | M11: 1 | N11: 8.4 | O11: 27 | P11: 88
A12: 7 | B12: Хайдарова Эльза | C12: 14 | F12: 166 | G12: 21 | H12: 21 | I12: 21 | J12: 9 | K12: 18 | L12: 13 | M12: 12 | N12: 8.9 | O12: 17 | P12: 89
A13: 8 | B13: Александрова Олеся | C13: 14 | F13: 153 | G13: 14 | H13: 12 | I13: 10 | J13: 14 | K13: 29 | L13: 20 | M13: 26 | N13: 8.4 | O13: 27 | P13: 106
A15: 9 | B15: Генералов Ярослав | C15: 14 | D15: 13 | E15: 46 | F15: 220 | G15: 40 | H15: 35 | I15: 44 | J15: 10 | K15: 28 | N15: 7.4 | O15: 46 | P15: =E15+G15+I15+K15+O15 -> 204 | Q15: личник
A16: 10 | B16: Хайрутдинов Булат | C16: 15 | D16: 11 | E16: 34 | F16: 234 | G16: 49 | H16: 28 | I16: 28 | J16: 8 | K16: 24 | N16: 6.9 | O16: 59 | P16: =E16+G16+I16+K16+O16 -> 194
A17: 11 | B17: Таланов Вова | C17: 15 | D17: 10 | E17: 30 | F17: 229 | G17: 44 | H17: 31 | I17: 34 | J17: 4 | K17: 16 | N17: 7.2 | O17: 50 | P17: 174
A18: 12 | B18: Кузнецов Руслан | C18: 14 | D18: 12 | E18: 38 | F18: 238 | G18: 56 | H18: 30 | I18: 34 | J18: 0 | K18: 8 | N18: 7.2 | O18: 53 | P18: 189
A19: 13 | B19: Сафаргалиев Амир | C19: 14 | D19: 6 | E19: 16 | F19: 213 | G19: 33 | H19: 25 | I19: 24 | J19: 2 | K19: 12 | N19: 6.9 | O19: 62 | P19: 147
A20: 14 | B20: Зенков Дмитрий | C20: 15 | D20: 14 | E20: 46 | F20: 190 | G20: 15 | H20: 27 | I20: 26 | J20: 1 | K20: 10 | N20: 7.9 | O20: 26 | P20: 123
A21: 15 | B21: Леухин Данил | C21: 14 | D21: 3 | E21: 7 | F21: 190 | G21: 18 | H21: 27 | I21: 28 | J21: 9 | K21: 26 | N21: 7.4 | O21: 46 | P21: 125
A22: 16 | B22: Кулагин Артур | C22: 15 | D22: 7 | E22: 19 | F22: 190 | G22: 15 | H22: 23 | I22: 18 | J22: 0 | K22: 8 | N22: 8.5 | O22: 11 | P22: 71
E23: =SUM(E6:E22) -> 236 | G23: =SUM(G6:G22) -> 447 | I23: =SUM(I6:I22) -> 398 | K23: =SUM(K6:K22) -> 305 | M23: =SUM(M6:M22) -> 142 | O23: =SUM(O6:O22) -> 612 | P23: =SUM(P6:P22) -> 2140
D25: Главный судья: Краснова Р.Р. Главный секретарь: Идиятуллина Г.Г.

Sheet многоборье 9 кл
B2: Сводный протокол проведения муниципального этапа спортивного многоборья в рамках республиканского этапа Всероссийских соревнований «Президентские состязания» среди городских образовательных организации, 9 класс МБОУ "ЗСОШ №2"
A6: № | B6: ФИ | C6: возраст | D6: подтягивание | E6: очки | F6: прыжки в дл.с\м | G6: очки | H6: поднимание туловища | I6: очки | J6: наклоны | K6: очки | L6: сгибание рук | M6: очки | N6: челночный бег 3х10 | O6: очки | P6: Общая сумма
A7: 1 | B7: Валиуллина Ильвина | C7: 15 | F7: 165 | G7: 21 | H7: 22 | I7: 21 | J7: 10 | K7: 20 | L7: 15 | M7: 16 | N7: 8.9 | O7: 9 | P7: =G7+I7+K7+M7+O7 -> 87 | Q7: личник
A8: 2 | B8: Жук Ксения | C8: 15 | F8: 150 | G8: 13 | H8: 24 | I8: 25 | J8: 0 | K8: 4 | L8: 1 | M8: 0 | N8: 8.8 | O8: 11 | P8: =G8+I8+K8+M8+O8 -> 53
A9: 3 | B9: Левашина Анна | C9: 16 | F9: 150 | G9: 8 | H9: 18 | I9: 14 | J9: 17 | K9: 38 | L9: 0 | M9: 0 | N9: 8.6 | O9: 14 | P9: 74
A10: 4 | B10: Нифатова Вероника | C10: 16 | F10: 160 | G10: 13 | H10: 22 | I10: 20 | J10: 12 | K10: 24 | L10: 5 | M10: 3 | N10: 8.4 | O10: 18 | P10: 78
A11: 5 | B11: Плотникова Валерия | C11: 16 | F11: 138 | G11: 3 | H11: 22 | I11: 20 | J11: 12 | K11: 24 | L11: 0 | M11: 0 | N11: 9.3 | O11: 3 | P11: 50
A12: 6 | B12: Родионова Диляра | C12: 15 | F12: 151 | G12: 14 | H12: 13 | I12: 10 | J12: 3 | K12: 7 | L12: 11 | M12: 9 | N12: 9.3 | O12: 3 | P12: 43
A13: 7 | B13: Сафронова Екатерина | C13: 15 | F13: 150 | G13: 8 | H13: 21 | I13: 19 | J13: 12 | K13: 24 | L13: 7 | M13: 5 | N13: 8.3 | O13: 23 | P13: 79
A14: 8 | B14: Чекашова Виктория | C14: 16 | F14: 152 | G14: 9 | H14: 21 | I14: 18 | J14: 2 | K14: 6 | L14: 14 | M14: 12 | N14: 9.0 | O14: 6 | P14: 51
A16: 9 | B16: Абдиев Максим | C16: 16 | D16: 13 | E16: 38 | F16: 229 | G16: 39 | H16: 20 | I16: 15 | J16: 14 | K16: 38 | N16: 7.8 | O16: 25 | P16: =E16+G16+I16+K16+O16 -> 155 | Q16: личник
A17: 10 | B17: Ерохин Дения | C17: 16 | D17: 5 | E17: 10 | F17: 172 | G17: 6 | H17: 19 | I17: 14 | J17: 7 | K17: 22 | N17: 7.6 | O17: 31 | P17: =E17+G17+I17+K17+O17 -> 83
A18: 11 | B18: Мартемьянов Артем | C18: 15 | D18: 10 | E18: 30 | F18: 210 | G18: 26 | H18: 24 | I18: 20 | J18: 4 | K18: 16 | N18: 7.8 | O18: 29 | P18: 121
A19: 12 | B19: Некратов Антон | C19: 16 | D19: 12 | E19: 34 | F19: 200 | G19: 18 | H19: 23 | I19: 18 | J19: 19 | K19: 52 | N19: 8.1 | O19: 19 | P19: 141
A20: 13 | B20: Паймухин Лев | C20: 15 | D20: 7 | E20: 19 | F20: 205 | G20: 23 | H20: 20 | I20: 15 | J20: 0 | K20: 4 | N20: 9.3 | O20: 3 | P20: 64
A21: 14 | B21: Рахматуллин Ринат | C21: 15 | D21: 16 | E21: 54 | F21: 165 | G21: 7 | H21: 22 | I21: 17 | J21: 6 | K21: 20 | N21: 8.2 | O21: 17 | P21: 115
A22: 15 | B22: Сабаев Алексей | C22: 15 | D22: 10 | E22: 30 | F22: 220 | G22: 35 | H22: 20 | I22: 15 | J22: 0 | K22: 4 | N22: 7.4 | O22: 42 | P22: 126
A23: 16 | B23: Сергеей Егор | C23: 16 | D23: 3 | E23: 4 | F23: 177 | G23: 8 | H23: 25 | I23: 22 | J23: 19 | K23: 52 | N23: 7.5 | O23: 34 | P23: 120
E24: =SUM(E7:E23) -> 219 | G24: =SUM(G7:G23) -> 251 | I24: =SUM(I7:I23) -> 283 | K24: =SUM(K7:K23) -> 355 | M24: =SUM(M7:M23) -> 45 | O24: =SUM(O7:O23) -> 287 | P24: =SUM(P7:P23) -> 1440
B26: Главный судья: Краснова Р.Р. Главный секретарь: Идиятуллина Г.Г.
